Cogmind - Beta 13 @@@ ROGUE MODE // 2024.06.06 @ 20:37:27 Player: TTEE1 Result: Destroyed by D-53 Grenadier with Mini Grenade Launcher Performance ------------- Evolutions (0) 0 Regions Visited (2) 400 Robots Destroyed (19) 95 Value Destroyed (387) 387 Prototype IDs (0) 0 Alien Tech Used (0) 0 Bonus (-12) -12 TOTAL SCORE: 870 Bonus ------- Friendly Fire -12 Cogmind --------- Core Integrity 0/250 Matter 290/300 Energy 124/125 System Corruption 0% Temperature Cool (0) Movement Core (50) Location -10/Mines Parts ------- > --- POWER (1) -------- Light Ion Engine > --- PROPULSION (2) --- (None) > --- UTILITY (2) ------ (None) > --- WEAPON (2) ------- (None) > --- INVENTORY (5) ---- Light Nuclear Core Light Assault Rifle Datajack Datajack Mining Laser Peak State ------------ > --- POWER ------------ Ion Engine > --- PROPULSION ------- Light Treads Compact Wheel > --- UTILITY ---------- Small Storage Unit Seismic Detector > --- WEAPON ----------- Small Laser Light Assault Rifle > --- INVENTORY -------- Light Ion Engine Light Treads Wheel [Rating: 7] Favorites ----------- Power Ion Engine Engine Ion Engine Propulsion Light Treads Treads Light Treads Wheel Compact Wheel Utility Huge Storage Unit Device Seismic Detector Storage Huge Storage Unit Weapon Small Laser Energy Gun Small Laser Ballistic Gun Light Assault Rifle Build | -11 -10 -10 ------- Run | Yrd Mat Min Slots Evolved . | . . . Power . | . . . Propulsion . | . . . Utility . | . . . Weapon . | . . . Parts Attached 22 | 9 7 6 Power 5 | 2 1 2 Engine 5 | 2 1 2 Core . | . . . Reactor . | . . . Propulsion 8 | 3 1 4 Treads 4 | 1 . 3 Leg . | . . . Wheel 4 | 2 1 1 Hover . | . . . Flight . | . . . Utility 5 | 2 3 . Device 3 | 1 2 . Storage 2 | 1 1 . Processor . | . . . Hackware . | . . . Protection . | . . . Artifact . | . . . Weapon 4 | 2 2 . Energy Gun 3 | 1 2 . Energy Cannon . | . . . Ballistic Gun 1 | 1 . . Ballistic Cannon . | . . . Launcher . | . . . Special Weapon . | . . . Impact Weapon . | . . . Slashing Weapon . | . . . Piercing Weapon . | . . . Special Melee Weapon . | . . . Unidentified Prototypes . | . . . Parts Lost 11 | . 5 6 Power 2 | . 1 1 Propulsion 5 | . 2 3 Utility 1 | . 1 . Weapon 3 | . 1 2 Highest Loss Streak 5 | . 3 5 To Critical Strikes . | . . . Average Slot Usage (%) 91 | . 95 72 Engine 13 | . 13 11 Treads 13 | . 12 14 Wheel 12 | . 13 8 Device 9 | . 11 . Storage 13 | . 14 12 Energy Gun 15 | . 14 24 Ballistic Gun 10 | . 13 . Naked Turns . | . . . Heaviest Build 88 | 13 88 86 Greatest Support 20 | 20 20 10 Greatest Overweight (x) 8 | . 8 8 Average Overweight (x) 3 | . 5 3 Largest Inventory Capacity 25 | 8 25 25 Average Capacity 20 | 7 24 22 Most Carried 10 | 5 10 8 Average Carried 6 | 3 8 6 Final Capacity 25 | 8 25 5 Final Carried 8 | 5 8 5 Class Distribution -------------------- 100% | Mutant Dominant Class ---------------- Mutant | -10/Materials Mutant | -10/Mines Resources | -11 -10 -10 ----------- Run | Yrd Mat Min Matter Collected 415 | 166 189 60 Remotely . | . . . Salvage Created 529 | 70 371 88 Parts 41 | 12 27 2 Haulers Intercepted . | . . . Recyclers Shooed . | . . . Parts Field Recycled . | . . . Retrieved Matter . | . . . Parts Self-Destructed . | . . . Prevented . | . . . Kills | -11 -10 -10 ------- Run | Yrd Mat Min Combat Hostiles Destroyed 16 | . 12 4 Guns 16 | . 12 4 Classes Destroyed 5 | 1 3 1 Worker 1 | . 1 . Tunneler 4 | 4 . . Swarmer 6 | . 6 . Grunt 8 | . 6 2 Assembled 2 | . . 2 Best Kill Streak 5 | 3 5 2 Combat Bots Only 5 | . 5 2 Max Kills in Single Turn 1 | 1 1 1 Gunslinging . | . . . Exploded . | . . . Melee . | . . . Uniques/NPCs Destroyed . | . . . Combat | -11 -10 -10 -------- Run | Yrd Mat Min Hostile Shots Fired 115 | . 80 35 Missed 32 | . 25 7 Damage Taken 1176 | . 559 617 Core 251 | . 111 140 Absorbed by Shields . | . . . Core Remaining (%) 100 | 100 . . Volleys Fired 70 | 15 41 14 Largest 2 | 2 2 2 Hottest 80 | 60 80 80 Shots Fired 131 | 30 73 28 Gun 131 | 30 73 28 Cannon . | . . . Launcher . | . . . Special . | . . . Kinetic 55 | 15 40 . Thermal 76 | 15 33 28 Explosive . | . . . Electromagnetic . | . . . Robot Hit Streak 9 | 9 7 7 Robot Miss Streak 3 | 2 3 3 Penetration Max . | . . . Secondary Targets 1 | . . 1 Max Gunslinging Chain 1 | . . 1 Shots Hit Robots 84 | 21 44 19 Core Hits 34 | 6 20 8 Critical Kills . | . . . Critical Parts Destroyed . | . . . Critical Strikes . | . . . Melee Attacks . | . . . Impact . | . . . Slashing . | . . . Piercing . | . . . Sneak Attacks . | . . . Combat Hostiles . | . . . Follow-up Attacks . | . . . Damage Inflicted 905 | 205 445 255 Guns 905 | 205 445 255 Cannons . | . . . Explosions . | . . . Melee . | . . . Ramming . | . . . Kinetic 275 | 77 198 . Thermal 630 | 128 247 255 Explosive . | . . . Electromagnetic . | . . . Impact . | . . . Slashing . | . . . Piercing . | . . . Highest Corruption . | . . . Average Corruption . | . . . Corruption Purged . | . . . Corruption Blocked . | . . . Overload Shots . | . . . Overflow Damage . | . . . Projectiles . | . . . Explosions . | . . . Melee . | . . . Knockbacks . | . . . Impact . | . . . Kinetic . | . . . Secondary . | . . . Self-Inflicted Damage . | . . . Shots . | . . . Rammed . | . . . Targets Rammed . | . . . Kicked . | . . . Crushed . | . . . Highest Temperature 236 | 40 91 236 Average Temperature 44 | 21 30 85 Received Heat Transfer 403 | . 231 172 Siege Activations . | . . . Robots Corrupted . | . . . Combat Hostiles . | . . . Parts Fried . | . . . Impact Corruptions . | . . . Robots Melted . | . . . Combat Hostiles . | . . . Parts Melted . | . . . Heat Transferred 1425 | 300 550 575 Parts Sabotaged . | . . . Parts Stolen . | . . . Parts Stripped . | . . . Power Chain Reactions . | . . . Alert | -11 -10 -10 ------- Run | Yrd Mat Min Peak Influence 233 | 20 233 79 Initial 39 | . 13 39 Average 70 | 9 95 62 Maximum Alert Level 1 | . 1 . Low Security (%) 96 | 100 94 100 Level 1 3 | . 5 . Level 2 . | . . . Level 3 . | . . . Level 4 . | . . . Level 5 . | . . . High Security . | . . . Max Security . | . . . Squads Dispatched 2 | . 2 . Investigation 2 | . 2 . Extermination . | . . . Reinforcement . | . . . Assault . | . . . Garrison . | . . . Intercept . | . . . Searches Triggered . | . . . Construction Impeded . | . . . Haulers Reinforced . | . . . Active Scanning Responses . | . . . Cargo Convoy Interrupts . | . . . Stealth | -11 -10 -10 --------- Run | Yrd Mat Min Distress Signals 4 | . 4 . Communications Jammed . | . . . Distress Signals . | . . . Times Spotted 30 | . 18 12 Peak Tracking Total 7 | . 6 7 Tactical Retreats 3 | . 2 1 Traps | -11 -10 -10 ------- Run | Yrd Mat Min Traps Triggered 2 | . 2 . Indirectly . | . . . Trap Hack Attempts . | . . . Triggered . | . . . Disarmed . | . . . Reprogrammed . | . . . Reused . | . . . Traps Extracted . | . . . Installed . | . . . Triggered . | . . . Machines | -11 -10 -10 ---------- Run | Yrd Mat Min Machines Disabled . | . . . Max in Single Turn . | . . . Machines Repaired . | . . . Machines Dismantled . | . . . Machines Sabotaged . | . . . Overloaded Fab Kills . | . . . Hacking | -11 -10 -10 --------- Run | Yrd Mat Min Machines Accessed 2 | . 1 1 Terminals 2 | . 1 1 Fabricators . | . . . Repair Stations . | . . . Recycling Units . | . . . Scanalyzers . | . . . Garrison Access . | . . . Total Hacks 3 | . 1 2 Successful . | . . . Failed 3 | . 1 2 Catastrophic 1 | . 1 . Database Lockouts . | . . . Manual 3 | . 1 2 Terminals 3 | . 1 2 Fabricators . | . . . Repair Stations . | . . . Recycling Units . | . . . Scanalyzers . | . . . Garrison Access . | . . . Terminal Hacks . | . . . Fabricator Hacks . | . . . Repair Station Hacks . | . . . Recycling Unit Hacks . | . . . Scanalyzer . | . . . Garrison Access Hacks . | . . . Unauthorized Hacks . | . . . Terminals . | . . . Fabricators . | . . . Repair Stations . | . . . Recycling Units . | . . . Scanalyzers . | . . . Garrison Access . | . . . Data Cores Recovered . | . . . Used . | . . . Hacking Detections 2 | . 1 1 Full Trace Events . | . . . Feedback Events . | . . . Feedback Blocked . | . . . Robot Schematics Acquired . | . . . Robots Built . | . . . Authchips . | . . . Time . | . . . Total Robot Build Rating . | . . . Part Schematics Acquired . | . . . Parts Built . | . . . Authchips . | . . . Time . | . . . Total Part Build Rating . | . . . Parts Repaired . | . . . Time . | . . . Parts Recycled . | . . . Recycled Matter . | . . . Retrieved Matter . | . . . Retrieved Components . | . . . Parts Scanalyzed . | . . . Part Schematics Acquired . | . . . Parts Damaged . | . . . Bothacking | -11 -10 -10 ------------ Run | Yrd Mat Min Used RIF Installer . | . . . Robots Hacked . | . . . Non-combat . | . . . Combat . | . . . Robot Hacks Applied . | . . . Relay Couplers Released . | . . . Fabnet Peak Effective % . | . . . Robots Rewired . | . . . Allies Hacked . | . . . Hacks Repelled . | . . . Allies | -11 -10 -10 -------- Run | Yrd Mat Min Total Allies . | . . . Largest Group . | . . . Highest-Rated Group . | . . . Highest-Rated Ally . | . . . Total Orders . | . . . Ally Attacks . | . . . Total Damage . | . . . Kills . | . . . Allies Corrupted . | . . . Allies Melted . | . . . Intel | -11 -10 -10 ------- Run | Yrd Mat Min Robot Analysis Total . | . . . Derelict Logs Recovered . | . . . Drone Launches . | . . . Drone Recoveries . | . . . Exploration | -11 -10 -10 ------------- Run | Yrd Mat Min Turns Passed 847 | 201 533 113 Spaces Moved 381 | 99 232 50 Core 40 | 14 . 26 Treads 89 | 78 11 . Legs . | . . . Wheels 252 | 7 221 24 Hover . | . . . Flight . | . . . Fastest Speed 50 | 50 160 50 Average Speed 160 | 140 177 122 Slowest Speed 200 | 160 200 200 Overloaded Moves . | . . . Propulsion Burnouts . | . . . Robots Hopped . | . . . Cave-ins Triggered . | . . . Exploration Rate (%) 23 | 6 49 16 Regions Visited 2 Branch Regions 1 Pre-discovered Areas . | . . . Known Exits Taken . | . . . Unknown Exits Taken 2 | 1 1 . Scrap Searched . | . . . Spaces Dug . | . . . Terrain Destroyed . | . . . Melee . | . . . Projectile . | . . . AOE . | . . . Terrain Rammed . | . . . Walls Destroyed . | . . . Machines Disabled . | . . . Actions | -11 -10 -10 --------- Run | Yrd Mat Min Total 494 | 131 289 74 Wait . | . . . Move 380 | 99 231 50 Hop . | . . . Pick Up 18 | 8 8 2 Fast Attach 4 | 4 . . Attach 12 | 3 4 5 Detach . | . . . Swap 6 | 2 3 1 Drop 4 | . 2 2 Fire 70 | 15 41 14 Melee . | . . . Ram . | . . . Kick . | . . . Crush . | . . . Escape Stasis . | . . . Rewire . | . . . Trap . | . . . Miscellaneous . | . . . Route ------- -11/Scrapyard -10/Materials (discovered 2 exits: [*Mat] / *Min) -10/Mines History --------- Turn | Location | Event 4 | -11/Scrapyard | Discovered new exit (range 15) 202 | -11/Scrapyard | Entered Materials 311 | -10/Materials | Build established: Mutant 468 | -10/Materials | Discovered new exit (range 5) 628 | -10/Materials | Discovered new exit (range 14) 690 | -10/Materials | Lost 3 parts (1p1n1u) 735 | -10/Materials | Entered Mines 738 | -10/Mines | Core integrity fell below 50% 786 | -10/Mines | Assembled infested the area 791 | -10/Mines | Assisted by a Guerilla fighting off Assembled 834 | -10/Mines | Core integrity fell below 20% 848 | -10/Mines | Destroyed by D-53 Grenadier with Mini Grenade Launcher Last Messages --------------- 00821_ as-53391 sneak attacks. 00823_ as-60320 destroyed. 00823_ C-30 ARC bursts open, deploying its payload. 00823_ D-53 Grenadier unfolds itself. 00824_ Sml. Laser destroyed. 00825_ K-01 Serf collects debris. 00825_ as-53391 destroyed. 00825_ T-07 Excavator destroyed. 00826_ K-01 Serf destroyed. 00827_ as-17668 destroyed. 00827_ K-01 Serf collects debris. 00830_ K-01 Serf destroyed. 00833_ Wheel destroyed. 00833_ Sml. Laser destroyed. 00833_ Dropped Ion Engine. 00835_ Dropped Huge Storage Unit. 00835_ Lgt. Treads destroyed. 00837_ The unstable cave ceiling collapses. 00844_ Connecting with Terminal... 00844_ Current location identified: Mines Map ----- +----------------------------------------------------+ | ??????????????????????????????????? | | ??????????????????????????????????? | | ??????????????????????????????????? | | ??????????????????????????????????? | | ??????????????????????????????????? | | ??????????????????????????????????? | | ?????????????? ???????????????????? | | ??????????? " ??????????#????????? | | ????????????"%"#??????? ##???????? | | ???????????? " ##????? % ####????? | | ???????????? #??? #????? | | ????????????? * ##? ?????? | | ?????????????# % #? " ??????? | | ????????????## # ""#???????? | | ????????????# # "#????????? | | ????????????# #????????? | | ?????????????# #????????? | | ?????????????# * #?????????? | | ??????????????# ##????????? | | ?##########???## #????????? | | ## #???# #????????? | | #T #???# ##???????? | | ?# #???# #???????? | | ?#""" #???# ! #???????? | | ?#""" ###### # #???????? | | ?#""" @ dd ##???????? | | ?# #### ###????????? | | ?############# # ###??????????? | | ????????# #####????????????? | | ????????# #????????????????? | | ????????# % #????????????????? | | ????????# """ #????????????????? | | ????????# """ #????????????????? | | ????????# """ #????????????????? | | ????????# #????????????????? | | ????????##########????????????????? | | ??????????????????????????????????? | | | | | | | | | | | | | | | | | | | | | | | | | | | +----------------------------------------------------+ Best States ------------- Heat Dissipation 25 Energy Generation 10 Energy Capacity 250 Matter Stores 300 Matter Capacity 300 Sight Range 16 Terrain Scan Density 10 Evasion (%) 50 Recoil Reduction 2 Item Schematics ----------------- None Robot Schematics ------------------ None Fabricated ------------ Nothing Alien Tech Used ----------------- None Achievements -------------- None Challenges ------------ None Game ------ Seed ChainTripodShredder Manual? 0 Play Time 00:14:29 Cumulative 7.9 hours Start 2024.06.06 @ 20:25:09 End 2024.06.06 @ 20:37:27 Sessions 1 Manual Loads 0 Difficulty Rogue Special Mode None Game No. 7 Rogue 7 Adventurer 0 Explorer 0 Win Type - Total 0 Types 0/0/0/0/0/0/0/0/0 Lore% 15 Gallery% 14 Achievement% 16 Wizard Run 0 Options --------- Layout 0 ASCII 0 Keyboard 0 Movement Mouse Keybinds 0 Fullscreen 2 Font 24/Smallcaps Map View 76x50 Zoom Use 0% Tactical HUD 1 Map Filters NONE Filters NONE Steam 1 RUN: de65092f-0be2-4191-b9e8-e3ebc89ca74a